Cogmind - Beta 15 @@@ ROGUE MODE // 2025.08.19 @ 17:10:04 Player: the Result: Destroyed by Y-54 Guardian with Flak Gun Performance ------------- Evolutions (0) 0 Regions Visited (3) 600 Robots Destroyed (37) 185 Value Destroyed (707) 707 Prototype IDs (16) 320 Alien Tech Used (0) 0 Bonus (112) 112 TOTAL SCORE: 1924 Bonus ------- Follower Combat Kills 112 Cogmind --------- Core Integrity 0/250 Matter 300/300 Energy 178/178 System Corruption 0% Temperature Cool (0) Movement Rolling (105) Location -7/Recycling Parts ------- > --- POWER (1) -------- Engine Construct > --- PROPULSION (2) --- Wheeled Compact Exoskeleton > --- UTILITY (2) ------ Armored Scrap Engine > --- WEAPON (2) ------- Ballistic Lightning Construct/C Makeshift Sword > --- INVENTORY (5) ---- High-capacity Storage Unit Cobbler Unit Power Bank Subdweller Shrapnel Launcher Peak State ------------ > --- POWER ------------ Engine Construct > --- PROPULSION ------- Wheeled Compact Exoskeleton > --- UTILITY ---------- Armored Scrap Engine > --- WEAPON ----------- Ballistic Lightning Construct/C Makeshift Sword > --- INVENTORY -------- Improved Heat Sink Improved Melee Analysis Suite Cobbler Unit [Rating: 36] Favorites ----------- Power Subdweller Power Source Engine Subdweller Power Source Propulsion Compact Wheel Treads Light Treads Leg Aluminum Leg Wheel Compact Wheel Utility Large Storage Unit Device Seismic Detector Storage Large Storage Unit Processor Core Analyzer Weapon Subdweller Beam Cannon Energy Gun Medium Laser Energy Cannon Subdweller Beam Cannon Ballistic Gun Subdweller Machine Gun Ballistic Cannon Constructs Launcher Grenade Launcher Slashing Weapon Makeshift Sword Build | -11 -10 -10 -7 ------- Run | Yrd Mat Sub Rec Slots Evolved . | . . . . Power . | . . . . Propulsion . | . . . . Utility . | . . . . Weapon . | . . . . Parts Attached 46 | 8 3 23 12 Power 9 | 1 1 5 2 Engine 9 | 1 1 5 2 Core . | . . . . Reactor . | . . . . Propulsion 8 | 2 . 4 2 Treads 2 | . . 2 . Leg 2 | 2 . . . Wheel 4 | . . 2 2 Hover . | . . . . Flight . | . . . . Utility 15 | 3 2 4 6 Device 10 | 2 . 4 4 Storage 4 | 1 2 . 1 Processor 1 | . . . 1 Hackware . | . . . . Protection . | . . . . Artifact . | . . . . Weapon 14 | 2 . 10 2 Energy Gun 7 | 2 . 4 1 Energy Cannon 3 | . . 3 . Ballistic Gun 2 | . . 2 . Ballistic Cannon . | . . . . Launcher 1 | . . 1 . Special Weapon . | . . . . Impact Weapon . | . . . . Slashing Weapon 1 | . . . 1 Piercing Weapon . | . . . . Special Melee Weapon . | . . . . Unidentified Prototypes 1 | . . . 1 Parts Lost 6 | . . 6 . Power . | . . . . Propulsion 3 | . . 3 . Utility . | . . . . Weapon 3 | . . 3 . Highest Loss Streak 2 | . . 2 . To Critical Strikes . | . . . . Average Backups 5 | 3 8 10 3 Power . | . 1 1 . Propulsion . | 1 2 . . Utility 2 | . 1 5 1 Weapon 1 | . 3 3 . Tool/Special . | . . . . Unused Backups 22 | . 1 3 18 Power 1 | . . . 1 Propulsion 1 | . . . 1 Utility 7 | . . 2 5 Weapon 12 | . 1 1 10 Tool/Special 1 | . . . 1 Average Slot Usage (%) 83 | . 100 93 79 Engine 13 | . 14 14 13 Treads 2 | . . 9 . Leg 3 | . 28 9 . Wheel 16 | . . 4 21 Device 14 | . 14 14 14 Storage 6 | . 14 14 2 Energy Gun 5 | . 28 13 . Energy Cannon 16 | . . 8 20 Ballistic Gun 1 | . . 3 . Slashing Weapon 1 | . . . 2 Peak Build Rating 36 | 7 8 16 36 Average Rating 16 | 5 7 11 19 On Entrance 6 | . 7 8 12 Naked Turns . | . . . . Heaviest Build 42 | 13 30 42 42 Greatest Support 40 | 20 20 40 36 Greatest Overweight (x) 13 | . 1 2 13 Average Overweight (x) . | . . . . Largest Inventory Capacity 20 | 8 15 15 20 Average Capacity 8 | 6 9 13 7 Most Carried 15 | 5 10 15 10 Average Carried 6 | 3 8 11 3 Final Capacity 15 | 8 10 15 5 Final Carried 10 | 5 10 9 5 Scrap Engine Consumption 28 | . . . 28 Constructs Created 3 | . . . 3 Constructs Modified 9 | . . . 9 Class Distribution -------------------- 55% | Scavenger-Mutant 27% | Mutant 17% | Construct Dominant Class ---------------- Mutant | -10/Materials Mutant | -10/Subcaves Scavenger-Mutant | -7/Recycling Resources | -11 -10 -10 -7 ----------- Run | Yrd Mat Sub Rec Matter Collected 1357 | 245 23 361 728 Remotely . | . . . . Salvage Created 2040 | 138 90 333 1479 Parts 76 | 6 3 28 39 Haulers Intercepted 2 | . 2 . . Recyclers Shooed 5 | 1 . . 4 Parts Field Recycled . | . . . . Retrieved Matter . | . . . . Parts Self-Destructed 11 | . . 11 . Prevented . | . . . . Kills | -11 -10 -10 -7 ------- Run | Yrd Mat Sub Rec Combat Hostiles Destroyed 15 | . . 12 3 Guns 3 | . . 3 . Cannons 7 | . . 4 3 AOE 4 | . . 4 . Classes Destroyed 10 | 2 1 4 3 Tunneler 3 | 3 . . . Hauler 2 | . 2 . . Recycler 14 | 1 . . 13 Turret 2 | . . 2 . Swarmer 4 | . . 4 . Duelist 1 | . . . 1 Protector 1 | . . . 1 Sentry 2 | . . 1 1 Subdweller 7 | . . 7 . Scrapper 1 | . . . 1 Best Kill Streak 6 | 2 1 5 6 Combat Bots Only 4 | . . 4 1 Max Kills in Single Turn 3 | 1 1 3 1 Gunslinging . | . . . . Exploded 3 | . . 3 . Melee . | . . . . Uniques/NPCs Destroyed . | . . . . Combat | -11 -10 -10 -7 -------- Run | Yrd Mat Sub Rec Hostile Shots Fired 113 | . . 104 9 Missed 39 | . . 35 4 Hits 74 | . . 69 5 Projectile 74 | . . 69 5 Critical Strikes 2 | . . 2 . Damage Taken 1319 | . 9 1251 59 Core 250 | . . 239 11 Absorbed by Shields 12 | . . . 12 Regen/Repaired (Parts) 65 | . . . 65 Core Remaining (%) 100 | 100 . . . Volleys Fired 138 | 12 10 79 37 Largest 2 | 2 2 2 2 Hottest 180 | 100 100 180 160 Shots Fired 239 | 24 20 132 63 Gun 141 | 24 20 97 . Cannon 95 | . . 32 63 Launcher 3 | . . 3 . Special . | . . . . Kinetic 42 | . . 41 1 Thermal 194 | 24 20 88 62 Explosive 3 | . . 3 . Electromagnetic . | . . . . Robot Hit Streak 12 | 3 8 12 9 Robot Miss Streak 4 | 2 2 4 3 Penetration Max . | . . . . Secondary Targets . | . . . . Shots Hit Robots 145 | 15 15 67 48 Core Hits 51 | 5 3 19 24 Critical Kills 2 | . . 1 1 Critical Parts Destroyed 1 | . . 1 . Critical Strikes 10 | 2 1 5 2 Burn 5 | 2 1 2 . Meltdown 1 | . . . 1 Destroy 3 | . . 3 . Sever 1 | . . . 1 Melee Attacks 14 | . . . 14 Impact . | . . . . Slashing 14 | . . . 14 Piercing . | . . . . Sneak Attacks 1 | . . . 1 Combat Hostiles . | . . . . Follow-up Attacks . | . . . . Damage Inflicted 3948 | 202 190 1644 1912 Guns 1525 | 202 190 1133 . Cannons 1246 | . . 334 912 Explosions 177 | . . 177 . Melee 1000 | . . . 1000 Ramming . | . . . . Kinetic 569 | . . 552 17 Thermal 2202 | 202 190 915 895 Explosive 177 | . . 177 . Electromagnetic . | . . . . Impact . | . . . . Slashing 1000 | . . . 1000 Piercing . | . . . . Highest Corruption . | . . . . Average Corruption . | . . . . Corruption Purged . | . . . . Corruption Blocked . | . . . . Overload Shots 8 | . . 8 . Effects 2 | . . 2 . Energy Bleed 2 | . . 2 . Overflow Damage 167 | . . 5 162 Projectiles 24 | . . . 24 Explosions 5 | . . 5 . Melee 138 | . . . 138 Knockbacks 1 | . . . 1 Impact . | . . . . Kinetic 1 | . . . 1 Secondary . | . . . . Self-Inflicted Damage . | . . . . Shots . | . . . . Rammed . | . . . . Targets Rammed . | . . . . Kicked . | . . . . Crushed . | . . . . Highest Temperature 454 | 181 216 395 454 Average Temperature 113 | 78 104 116 124 Received Heat Transfer 916 | . 6 886 24 Effects 2 | . . 1 1 Energy Bleed 1 | . . 1 . Interference 1 | . . . 1 Siege Activations . | . . . . Martial Activations . | . . . . Shielding Activations . | . . . . Robots Disrupted . | . . . . Combat Hostiles . | . . . . Robots Corrupted . | . . . . Combat Hostiles . | . . . . Parts Fried . | . . . . Impact Corruptions . | . . . . Robots Melted 3 | . 1 1 1 Combat Hostiles 1 | . . 1 . Parts Melted 10 | 3 5 2 . Heat Transferred 4075 | 740 629 1478 1228 Parts Sabotaged . | . . . . Parts Stolen . | . . . . Parts Stripped . | . . . . Power Chain Reactions . | . . . . Alert | -11 -10 -10 -7 ------- Run | Yrd Mat Sub Rec Maximum Alert Level . | . . . . Low Security (%) 100 | 100 100 . 100 Level 1 . | . . . . Level 2 . | . . . . Level 3 . | . . . . Level 4 . | . . . . Level 5 . | . . . . High Security . | . . . . Max Security . | . . . . Peak Influence 82 | 10 14 . 82 Initial . | . . . . Average 16 | 2 2 . 17 Influence Increases 509 | 20 28 185 276 Destroy 0b10 Robot/C 200 | . . 140 60 Destroy 0b10 Robot/NC 120 | 20 10 . 90 Destroy Leader 4 | . 4 . . Allied During Kill 6 | . . . 6 Successful Hack 40 | . 14 . 26 Disable Machine 30 | . . . 30 Destroy Structure 64 | . . . 64 Lose Combat Pursuer 45 | . . 45 . Influence Decreases 504 | 20 28 185 271 Time Decay 424 | 20 28 125 251 Lost Part 60 | . . 60 . Lost Ally 20 | . . . 20 Squads Dispatched . | . . . . Investigation . | . . . . Extermination . | . . . . Reinforcement . | . . . . Assault . | . . . . Garrison . | . . . . Intercept . | . . . . Searches Triggered . | . . . . Construction Impeded . | . . . . Haulers Reinforced . | . . . . Active Scanning Responses . | . . . . Cargo Convoy Interrupts . | . . . . Stealth | -11 -10 -10 -7 --------- Run | Yrd Mat Sub Rec Distress Signals 2 | . 2 . . Communications Jammed . | . . . . Distress Signals . | . . . . Times Spotted 25 | . 2 17 6 Peak Tracking Total 6 | . 3 6 3 Tactical Retreats 1 | . . 1 . Traps | -11 -10 -10 -7 ------- Run | Yrd Mat Sub Rec Traps Triggered 3 | . 1 2 . Indirectly . | . . . . Trap Hack Attempts . | . . . . Triggered . | . . . . Disarmed . | . . . . Reprogrammed . | . . . . Reused . | . . . . Traps Extracted . | . . . . Installed . | . . . . Triggered . | . . . . Machines | -11 -10 -10 -7 ---------- Run | Yrd Mat Sub Rec Machines Disabled 7 | . . 3 4 Max in Single Turn 1 | . . 1 1 Machines Repaired . | . . . . Machines Dismantled . | . . . . Machines Sabotaged . | . . . . Overloaded Fab Kills . | . . . . Hacking | -11 -10 -10 -7 --------- Run | Yrd Mat Sub Rec Machines Accessed 13 | . 1 1 11 Terminals 7 | . 1 . 6 Fabricators . | . . . . Repair Stations . | . . . . Recycling Units 4 | . . . 4 Scanalyzers . | . . . . Garrison Access . | . . . . Total Hacks 35 | . 3 9 23 Successful 24 | . 2 9 13 Failed 11 | . 1 . 10 Catastrophic 4 | . 1 . 3 Database Lockouts . | . . . . Manual 15 | . 4 . 11 Terminals 17 | . 3 . 14 Fabricators . | . . . . Repair Stations . | . . . . Recycling Units 7 | . . . 7 Scanalyzers . | . . . . Garrison Access . | . . . . Terminal Hacks 17 | . 2 9 6 Record 8 | . . 8 . Part Schematic 4 | . 2 . 2 Robot Schematic 1 | . . . 1 Zone Layout 1 | . . . 1 Proto ID Catalog 1 | . . 1 . Release Object 2 | . . . 2 Fabricator Hacks . | . . . . Repair Station Hacks . | . . . . Recycling Unit Hacks 3 | . . . 3 Retrieve Components 3 | . . . 3 Scanalyzer . | . . . . Garrison Access Hacks . | . . . . Unauthorized Hacks 4 | . . . 4 Terminals 3 | . . . 3 Botnet 3 | . . . 3 Fabricators . | . . . . Repair Stations . | . . . . Recycling Units 1 | . . . 1 Mask 1 | . . . 1 Scanalyzers . | . . . . Garrison Access . | . . . . Data Cores Recovered . | . . . . Used . | . . . . Hacking Detections 9 | . 1 . 8 Full Trace Events 2 | . 1 . 1 Feedback Events . | . . . . Feedback Blocked . | . . . . Robot Schematics Acquired 1 | . . . 1 Robots Built . | . . . . Authchips . | . . . . Time . | . . . . Total Robot Build Rating . | . . . . Part Schematics Acquired 4 | . 2 . 2 Parts Built . | . . . . Authchips . | . . . . Time . | . . . . Total Part Build Rating . | . . . . Parts Repaired . | . . . . Time . | . . . . Parts Recycled . | . . . . Recycled Matter . | . . . . Retrieved Matter . | . . . . Retrieved Components 18 | . . . 18 Parts Scanalyzed . | . . . . Part Schematics Acquired . | . . . . Parts Damaged . | . . . . Bothacking | -11 -10 -10 -7 ------------ Run | Yrd Mat Sub Rec Used RIF Installer . | . . . . Robots Hacked . | . . . . Non-combat . | . . . . Combat . | . . . . Robot Hacks Applied . | . . . . Relay Couplers Released . | . . . . Fabnet Peak Effective % . | . . . . Robots Rewired 6 | . . . 6 Allies Hacked . | . . . . Hacks Repelled . | . . . . Allies | -11 -10 -10 -7 -------- Run | Yrd Mat Sub Rec Total Allies 6 | . . . 6 Largest Group 6 | . . . 6 Highest-Rated Group 132 | . . . 132 Highest-Rated Ally 40 | . . . 40 Total Orders 1 | . . . 1 STAY 1 | . . . 1 Ally Attacks 12 | . . . 12 Total Damage 853 | . . . 853 Kills 9 | . . . 9 Allies Corrupted . | . . . . Allies Melted 1 | . . . 1 Intel | -11 -10 -10 -7 ------- Run | Yrd Mat Sub Rec Active Infowar (turns) 1920 | 45 214 1471 190 Optics 506 | . . 506 . Seismic 1414 | 45 214 965 190 Robot Analysis Total . | . . . . Derelict Logs Recovered 1 | . . 1 . Drone Launches . | . . . . Drone Recoveries . | . . . . Exploration | -11 -10 -10 -7 ------------- Run | Yrd Mat Sub Rec Turns Passed 6224 | 118 214 1659 4233 Spaces Moved 3219 | 59 128 917 2115 Core 11 | 7 . . 4 Treads 300 | . . 287 13 Legs 462 | 52 128 282 . Wheels 2446 | . . 348 2098 Hover . | . . . . Flight . | . . . . Fastest Speed 50 | 50 120 110 100 Average Speed 119 | 111 120 145 108 Slowest Speed 700 | 120 190 190 700 Overloaded Moves . | . . . . Propulsion Burnouts . | . . . . Robots Hopped . | . . . . Potential Cave-ins . | . . . . Cave-ins Triggered . | . . . . Exploration Rate (%) 44 | 4 24 52 99 Regions Visited 3 Branch Regions 2 Pre-discovered Areas 1 | . . 1 . Known Exits Taken . | . . . . Unknown Exits Taken 3 | 1 1 1 . Scrap Searched . | . . . . Spaces Dug 4 | . . 2 2 Terrain Destroyed 38 | . . 17 21 Melee . | . . . . Projectile 27 | . . 6 21 AOE 11 | . . 11 . Terrain Rammed . | . . . . Walls Destroyed . | . . . . Machines Disabled . | . . . . Actions | -11 -10 -10 -7 --------- Run | Yrd Mat Sub Rec Total 5353 | 83 168 1110 3992 Wait 1754 | . 18 39 1697 Move 3216 | 58 127 916 2115 Hop . | . . . . Pick Up 48 | 5 6 17 20 Fast Attach 20 | 7 1 3 9 Attach 17 | . . 12 5 Detach 5 | . . 1 4 Swap 27 | 1 3 21 2 Drop 72 | . 3 22 47 Fire 138 | 12 10 79 37 Melee 14 | . . . 14 Ram . | . . . . Kick . | . . . . Crush . | . . . . Escape Stasis . | . . . . Rewire 42 | . . . 42 Trap . | . . . . Miscellaneous . | . . . . Route ------- -11/Scrapyard -10/Materials -10/Subcaves (discovered 3 exits: [*Mat] / *Rec / [*Scr]) -7/Recycling (discovered 1 exit: [*Fac]) History --------- Turn | Location | Event 7 | -11/Scrapyard | Discovered new exit (range 15) 119 | -11/Scrapyard | Entered Materials 120 | -10/Materials | Met a group of wandering Federalists 173 | -10/Materials | Discovered new exit (range 8) 333 | -10/Materials | Entered Subcaves 334 | -10/Subcaves | Continued accompanying wandering Federalists (6) 337 | -10/Subcaves | Build established: Mutant 345 | -10/Subcaves | Discovered new exit (range 11) 586 | -10/Subcaves | Shifting Twisted Machinery released Sub. Power Source 587 | -10/Subcaves | Shifting Twisted Machinery released Piercing Trap 602 | -10/Subcaves | A swath of the cavern ceiling suddenly collapsed 652 | -10/Subcaves | Learned location of Recycling (-7) 753 | -10/Subcaves | Visited 4L-MR0's lab 771 | -10/Subcaves | Found Power Bank 924 | -10/Subcaves | A swath of the cavern ceiling suddenly collapsed 1354 | -10/Subcaves | Discovered new exit (range 17) 1548 | -10/Subcaves | Core integrity fell below 50% 1701 | -10/Subcaves | Core integrity fell below 20% 1992 | -10/Subcaves | Entered Recycling 2127 | -7/Recycling | Build established: Scavenger-Mutant 2349 | -7/Recycling | Discovered new exit (range 15) 2637 | -7/Recycling | Scanned before Scraplab entrance 2671 | -7/Recycling | Entered Scraplab 4636 | -7/Recycling | Angered Scraplab inhabitants 4637 | -7/Recycling | Found Prototype Device 4661 | -7/Recycling | Identified Scrap Engine 4678 | -7/Recycling | Lost 6 allies 5025 | -7/Recycling | Build established: Mutant 5458 | -7/Recycling | Build established: Construct 6225 | -7/Recycling | Destroyed by Y-54 Guardian with Flak Gun Last Messages --------------- 06036_ Dropped Mak. Sword. 06066_ Arm. Scrap Engine reinforces its armored shell (+65). 06088_ Scrap Engine modifies Engine Construct: Storage -67, Mass -3. 06108_ Scrap Engine modifies Thermal Construct/C: Energy Cost -9, Coverage +43, +Penetration Renamed Ballistic Lightning Construct/C. 06108_ Acquired Mak. Sword. 06117_ Connecting with Recycling Unit... 06161_ Acquired 10 matter. 06178_ U-05 Engineer knocked back. 06202_ Connecting with Terminal... >>Schematic(G-47 Trooper) Downloading schematic... G-47 Trooper Tier: 3 Schematic downloaded. 06225_ Y-54 Guardian springs to life. Map ----- +----------------------------------------------------+ | ??# # ####"""#??# ##!!!#??# #???? | | ??# # ########### ######??# #???? | | ??# # ## ## #???????# #???? | | ?## # ## ""## ###?????#+##### | | ?# # ## T"## T#?????# | | ?## # ## ""## ""#?????# """ | | ??#######+###+## ## ## ###?????# "T" " | | ######??# #?# ## ## ## #???????# " | | #??#%### ## ## ## ##??????# " | | "T ####%### ######### # #??????# | | "" ### ## #???????# # #??????# | | % ## #???????# """"" + #??????# | | ### ## #???????# """"" # #??????####### | | ##+########## #########%""""" # #???????????# | | / #??# + """"" ## ##??????????## | | / #??# #=""""" ## #???????????## | | ! #??# """" # """"" ## #??????????#### | | /#??# """" + """"" ## #?????????## ## | | #??# """" # ## ###########"##? | | ##########??# # ## # #? | | ????????????# + ## # #? | | #???????????#### ### ## # " """"" #? | | #???????????#### #?# ## + """"""""" #? | | #?????########## #?###+###### # """ """ #? | | #?????# # #???# #????# # #? | | #?????# "" # #####@###### # " """"" #? | | ##????# "T + + """"""""" #? | | #????# "" % # #### """ """ #? | | ##????# %% # #??# #? | | #?????# " " + % #??# #? | | #?????# "" # ######## #??# #? | | ??????# """ # #??????# #####+##+########? | | ??????# # #??????# #???????? | | ??????###+###### #??????" #???????? | | ????????# #????# #??????Y #???????? | | ######### #???## ##?????" ######### | | # ##### #?????# # | | + #?????# # | | ####### #?????# # | | """ ########+#######?##Y###### # | | """ ##!! !!!! #??###????# # | | """ ## ! ! #?????????# + | | ## !!! !#?????????######### | | ########## ! ! ! #?????????????????# | | ?????????###############?????????????????####### # | | ?????????????????????????????????????????????????? | | ?????????????????????????????????????????????????? | | | | | | | +----------------------------------------------------+ Best States ------------- Heat Dissipation 25 Coolant Potential 50 Energy Generation 16 Energy Capacity 290 Matter Stores 300 Matter Capacity 300 Sight Range 21 Terrain Scan Density 10 Evasion (%) 55 Core Analysis 6 Recoil Reduction 2 Item Schematics ----------------- Hcp. Storage Unit | -10/Materials | Hacked Huge Storage Unit | -10/Materials | Hacked Coolant Injector | -7/Recycling | Hacked Lgt. Armored Exoskeleton | -7/Recycling | Hacked Robot Schematics ------------------ G-47 Trooper | -7/Recycling | Hacked Fabricated ------------ Nothing Repaired ---------- Nothing Alien Tech Used ----------------- None Achievements -------------- None Challenges ------------ None Game ------ Seed CoolantAbsorptionDetonator Manual? 0 Play Time 00:46:35 Cumulative 226.4 hours Start 2025.08.19 @ 16:20:01 End 2025.08.19 @ 17:10:04 Sessions 1 Manual Loads 0 Difficulty Rogue Special Mode None Game No. 165 Rogue 165 Adventurer 0 Explorer 0 Win Type - Total 2 Types 2/0/0/0/0/0/0/0/0/0 Lore% 67 Gallery% 64 Achievement% 55 Wizard Run 0 Options --------- Layout 1 ASCII 0 Keyboard 0 Movement Mouse Keybinds 0 Fullscreen 1 Font 32/SmallcapsGlow Map View 50x35 Zoom Use 0% Tactical HUD 1 Map Filters NONE Filters NONE Steam 1 RUN: 4515d283-0bb6-474c-ae45-fbf13f245359